bitfinex/quotes_SOLUSD_20250822
["timestamp","ask_amount","ask_price","bid_price","bid_amount"]
[1755888072000,0.06,197.11,197.1,4.44966651]
[1755888072202,0.06,197.11,197.1,9.87924616]
[1755888072398,0.06,197.11,197.1,35.87924616]
[1755888073105,0.06,197.11,197.1,35.87440132]
[1755888073494,0.06,197.11,197.1,29.78482167]
[1755888073699,0.06,197.11,197.1,29.78336774]
[1755888074115,0.06,197.11,197.1,35.87294739]
[1755888074327,0.06,197.11,197.1,35.21294739]
[1755888074542,0.06,197.11,197.1,29.78336774]
[1755888074691,0.67,197.11,197.1,3.78336774]
[1755888074896,0.06,197.11,197.1,3.78336774]
[1755888075110,0.06,197.11,197.1,9.87294739]
[1755888076004,0.06,197.11,197.1,3.78336774]
[1755888076819,6.09957965,197.11,197.07,26.0]
[1755888077025,6.09957965,197.11,197.08,3.78083989]
[1755888077218,6.09957965,197.11,197.09,3.78083989]
[1755888077418,6.09957965,197.11,197.1,3.78083989]
[1755888077605,0.06,197.11,197.1,3.78083989]
[1755888077996,6.09957965,197.11,197.03,26.0]
[1755888078217,0.28432314,197.1,197.04,3.78069702]
[1755888078521,5.42957965,197.07,197.05,3.78069702]
[1755888078708,5.42957965,197.07,196.98,0.03]
[1755888078709,5.42957965,197.08,197.06,3.78069702]
[1755888078907,5.42957965,197.09,197.07,3.78069702]
[1755888079213,5.48957965,197.11,197.06,5.42957965]
[1755888079407,5.48957965,197.11,197.0,26.0]
[1755888079408,5.48957965,197.11,197.07,4.44061059]
[1755888079721,0.06,197.11,197.08,4.44041002]
[1755888079928,0.06,197.11,197.08,0.66]
[1755888081723,0.06,197.11,197.09,4.4400767]
[1755888081921,0.06,197.11,197.09,0.66]
[1755888082321,0.06,197.11,197.1,3.77995589]
[1755888083225,0.06,197.11,197.1,3.77990774]
[1755888083399,0.06,197.11,197.09,0.66]
[1755888084202,0.06,197.11,197.1,4.44070556]
[1755888084826,0.06,197.11,197.1,9.87028521]
[1755888085829,0.06,197.11,197.1,4.44070556]
[1755888086032,0.06,197.11,197.1,3.78070556]
[1755888088409,0.06,197.11,197.1,3.78202879]
[1755888090636,0.06,197.11,197.1,4.49202879]
[1755888090822,0.06,197.11,197.1,3.78202879]
[1755888091232,0.06,197.11,197.1,4.49202879]
[1755888091437,0.06,197.11,197.1,4.49709387]
[1755888091816,0.06,197.11,197.1,0.71]
[1755888092111,0.06,197.11,197.1,4.49685158]
[1755888092941,0.06,197.11,197.1,9.92643123]
[1755888093323,0.06,197.11,197.1,4.49685158]
[1755888093630,0.06,197.11,197.1,9.92643123]
[1755888094913,0.06,197.11,197.1,3.78685158]
[1755888096638,0.06,197.11,197.1,4.49685158]
[1755888096947,0.06,197.11,197.1,3.78685158]
[1755888097118,19.9794968,197.11,197.1,3.78685158]
[1755888098529,0.06,197.11,197.1,3.78685158]
[1755888100531,0.06,197.11,197.09,0.03]
[1755888100741,0.06,197.11,197.1,3.7931606]
[1755888101249,0.06,197.11,197.1,9.93273931]
[1755888105134,0.06,197.11,197.1,70.83273931]
[1755888105722,0.06,197.11,197.1,65.40315966]
[1755888105919,0.06,197.11,197.1,70.83273931]
[1755888106147,0.06,197.11,197.1,9.93273931]
[1755888108560,0.06,197.11,197.1,4.50315966]
[1755888108764,0.06,197.11,197.1,9.93273931]
[1755888109732,0.06,197.11,197.1,9.92748935]
[1755888110168,0.06,197.11,197.1,70.82748935]
[1755888110363,0.06,197.11,197.1,70.82712413]
[1755888115551,0.06,197.11,197.1,9.21712413]
[1755888115754,0.06,197.11,197.1,49.75712413]
[1755888116550,0.06,197.11,197.1,75.75712413]
[1755888116757,0.67,197.11,197.1,3.78754448]
[1755888116951,0.06,197.11,197.1,3.78754448]
[1755888117266,0.06,197.11,197.1,9.21712413]
[1755888118978,0.06,197.11,197.1,9.88592655]
[1755888119453,0.06,197.11,197.1,9.8853398]
[1755888119851,0.06,197.11,197.1,50.4053398]
[1755888126888,0.06,197.11,197.1,45.94957965]
[1755888127068,0.06,197.11,197.1,44.97570146]
[1755888127271,0.06,197.11,197.1,50.40528111]
[1755888127491,0.06,197.11,197.1,46.61957965]
[1755888127694,0.06,197.11,197.1,50.40526721]
[1755888130089,0.06,197.11,197.1,50.40601022]
[1755888130588,0.06,197.11,197.1,55.83558987]
[1755888131366,0.06,197.13,197.12,26.0]
[1755888131566,0.06,197.13,197.12,81.14558987]
[1755888131874,0.06,197.13,197.12,81.81558987]
[1755888134565,0.06,197.13,197.12,35.21601022]
[1755888134770,0.06,197.13,197.12,75.69601022]
[1755888134969,0.06,197.13,197.12,35.21601022]
[1755888135186,0.67,197.13,197.12,49.69601022]
[1755888135509,0.67,197.13,197.12,75.69601022]
[1755888135796,0.06,197.13,197.12,75.69601022]
[1755888135973,0.06,197.13,197.12,71.90957965]
[1755888136180,0.06,197.13,197.12,75.69936694]
[1755888136397,0.06,197.13,197.12,70.26978729]
[1755888136694,0.06,197.13,197.12,75.69982667]
[1755888137365,0.06,197.13,197.12,76.36982667]
[1755888137689,0.06,197.13,197.12,75.69982667]
[1755888138984,0.67,197.13,197.12,75.69982667]
[1755888139201,0.67,197.13,197.12,75.69894363]
[1755888139374,0.06,197.13,197.12,75.69894363]
[1755888139874,0.06,197.13,197.12,76.36894363]
[1755888140983,0.06,197.13,197.12,55.79852328]
[1755888141386,0.06,197.13,197.12,119.01376742]
[1755888144187,0.2,197.14,197.13,13.87991715]
[1755888144394,0.2,197.14,197.13,85.17614024]
[1755888144595,0.2,197.14,197.13,125.61614024]
[1755888144791,0.2,197.14,197.13,125.10886078]
[1755888145182,0.2,197.14,197.13,125.10701012]
[1755888146283,0.2,197.14,197.13,127.13762212]
[1755888146490,0.2,197.14,197.13,86.69762212]
[1755888146689,0.2,197.14,197.13,127.64490158]
[1755888146890,0.2,197.14,197.13,127.13762212]
[1755888147975,0.06,197.15,197.13,127.13762212]
[1755888148172,0.06,197.15,197.14,23.09701012]
[1755888148384,0.06,197.15,197.14,23.78701012]
[1755888148977,0.06,197.16,197.15,0.28432314]
[1755888149184,0.06,197.16,197.15,49.94141611]
[1755888149501,0.06,197.16,197.15,50.63141611]
[1755888149716,0.06,197.16,197.15,52.66192411]
[1755888152496,0.06,197.2,197.19,12.21383751]
[1755888152694,0.06,197.2,197.19,16.27065135]
[1755888152906,0.67,197.2,197.19,9.20931537]
[1755888153108,0.06,197.2,197.19,9.20931537]
[1755888153310,0.06,197.2,197.19,49.62931537]
[1755888154089,0.06,197.2,197.19,9.20931537]
[1755888154296,0.06,197.2,197.19,45.84957965]
[1755888154595,0.06,197.2,197.19,49.62600038]
[1755888155115,0.06,197.2,197.19,9.20600038]
[1755888155330,0.67,197.2,197.19,49.60600038]
[1755888155690,0.06,197.2,197.19,49.60600038]
[1755888158132,0.67,197.2,197.19,3.77642073]
[1755888158300,6.09957965,197.2,197.19,3.77642073]
[1755888158611,0.67,197.2,197.19,3.77642073]
[1755888159295,0.67,197.2,197.19,3.77670585]
[1755888159625,6.09957965,197.2,197.19,3.77670585]
[1755888159993,0.67,197.2,197.19,3.77670585]
[1755888160193,6.09957965,197.2,197.19,3.77670585]
[1755888160394,0.67,197.2,197.19,3.77714127]
[1755888160594,6.09957965,197.2,197.19,3.77714127]
[1755888161498,0.67,197.2,197.19,3.77714127]
[1755888161700,6.09957965,197.2,197.19,3.77714127]
[1755888163605,6.09957965,197.2,197.19,3.77776595]
[1755888164018,6.09957965,197.2,197.19,3.777973]
[1755888164336,0.67,197.2,197.19,3.777973]
[1755888164539,6.09957965,197.2,197.19,3.777973]
[1755888164999,0.67,197.2,197.19,3.777973]
[1755888165199,6.09957965,197.2,197.19,3.777973]
[1755888165425,0.67,197.2,197.19,3.777973]
[1755888165726,6.09957965,197.2,197.19,3.777973]
[1755888165925,0.67,197.2,197.19,3.777973]
[1755888166142,0.06,197.2,197.19,3.777973]
[1755888168228,0.67,197.2,197.19,3.777973]
[1755888168413,19.69517366,197.2,197.19,3.777973]
[1755888168616,19.69517366,197.2,197.19,3.677973]
[1755888168812,14.26559401,197.2,197.19,3.677973]
[1755888169133,19.69517366,197.2,197.19,3.677973]
[1755888169612,14.26559401,197.2,197.19,3.677973]
[1755888169814,19.69517366,197.2,197.19,3.677973]
[1755888171822,22.34099557,197.2,197.19,3.677973]
[1755888172041,13.59559401,197.19,197.18,0.03]
[1755888172221,19.67733523,197.19,197.18,0.03]
[1755888173418,19.8194968,197.19,197.18,0.03]
[1755888174321,14.38991715,197.19,197.18,0.03]
[1755888174520,19.8194968,197.19,197.18,0.03]
[1755888174717,14.38991715,197.19,197.18,0.03]
[1755888174941,19.8194968,197.19,197.18,0.03]
[1755888175825,14.38991715,197.19,197.18,0.03]
[1755888176218,19.8194968,197.19,197.18,0.03]
[1755888176932,14.38991715,197.19,197.18,0.03]
[1755888177136,19.02517366,197.19,197.18,0.03]
[1755888179442,5.42957965,197.19,197.18,0.03]
[1755888180839,7.46091265,197.19,197.18,3.80666423]
[1755888181048,7.46091265,197.19,197.18,0.03]
[1755888182124,7.46091265,197.19,197.18,3.80759824]
[1755888183017,2.031333,197.19,197.18,4.49759824]
[1755888183424,2.70582191,197.2,197.18,9.92717789]
[1755888183633,2.70582191,197.2,197.19,9.89717789]
[1755888184641,2.70582191,197.2,197.19,4.46759824]
[1755888185950,2.70582191,197.2,197.19,9.89717789]
[1755888186129,0.06,197.2,197.19,9.89717789]
[1755888186661,0.06,197.2,197.19,4.46759824]
[1755888186826,0.06,197.2,197.19,9.89717789]
[1755888187029,0.06,197.2,197.19,7.89717789]
[1755888189149,0.06,197.2,197.19,1.77759824]
[1755888189753,0.06,197.2,197.19,2.46759824]
[1755888189949,0.06,197.2,197.19,0.69]
[1755888190452,0.06,197.2,197.18,5.45957965]
[1755888190627,0.06,197.2,197.18,6.14957965]
[1755888191023,0.06,197.2,197.19,0.69]
[1755888191254,0.06,197.2,197.19,6.11957965]
[1755888191752,0.06,197.2,197.19,0.69]
[1755888192240,0.06,197.2,197.19,6.11957965]
[1755888192423,0.06,197.2,197.19,0.69]
[1755888192627,0.06,197.2,197.18,5.45957965]
[1755888192835,0.06,197.2,197.18,0.03]
[1755888193637,5.93957965,197.19,197.18,0.03]
[1755888193840,5.42957965,197.19,197.18,0.03]
[1755888194029,0.06,197.2,197.18,0.72]
[1755888194339,2.091127,197.2,197.18,0.72]
[1755888194526,0.06,197.2,197.18,0.72]
[1755888194726,0.06,197.2,197.18,0.03]
[1755888194945,0.06,197.2,197.19,0.69]
[1755888196561,0.06,197.2,197.19,6.11957965]
[1755888198362,0.06,197.2,197.18,5.45957965]
[1755888198562,0.06,197.2,197.18,6.14957965]
[1755888198757,0.06,197.2,197.18,5.45957965]
[1755888199062,0.06,197.2,197.19,3.784464]
[1755888199358,0.06,197.2,197.19,4.474464]
[1755888199530,0.06,197.2,197.19,9.90404365]
[1755888199843,0.06,197.2,197.19,9.9042145]
[1755888200436,0.06,197.2,197.19,4.47463485]
[1755888200758,0.06,197.2,197.19,9.9042145]
[1755888202029,0.06,197.2,197.19,6.11957965]
[1755888202231,0.06,197.2,197.19,9.90793048]
[1755888202942,0.06,197.2,197.19,4.47835083]
[1755888203135,0.06,197.2,197.19,9.90793048]
[1755888204735,0.06,197.2,197.19,3.78835083]
[1755888208145,0.06,197.2,197.19,3.78924785]
[1755888210148,0.06,197.2,197.19,4.45924785]
[1755888210557,0.06,197.2,197.19,9.8888275]
[1755888210760,0.06,197.2,197.19,4.45924785]
[1755888211062,0.06,197.2,197.19,9.8888275]
[1755888211367,0.06,197.2,197.19,9.88620811]
[1755888212051,0.06,197.2,197.19,3.78662846]
[1755888213069,0.06,197.2,197.19,4.45662846]
[1755888213268,0.06,197.2,197.19,9.88620811]
[1755888213853,0.06,197.2,197.19,4.45662846]
[1755888214171,0.06,197.2,197.19,9.88620811]
[1755888214645,0.06,197.2,197.19,44.69662846]
[1755888214841,0.06,197.2,197.19,50.12620811]
[1755888217262,0.06,197.2,197.19,50.12376968]
[1755888217654,0.06,197.2,197.19,46.33957965]
[1755888217952,0.06,197.2,197.19,50.12402699]
[1755888219077,0.06,197.2,197.19,50.15402699]
[1755888220469,0.06,197.2,197.19,50.15676991]
[1755888222889,0.06,197.2,197.19,44.72719026]
[1755888223059,0.06,197.2,197.19,50.15676991]
[1755888224173,0.06,197.2,197.19,44.72719026]
[1755888224382,0.06,197.2,197.19,50.15676991]
[1755888224777,0.06,197.2,197.19,49.48676991]
[1755888225066,0.06,197.2,197.19,44.03719026]
[1755888225264,0.06,197.2,197.19,3.81719026]
[1755888225590,0.06,197.2,197.19,44.03719026]
[1755888225766,0.06,197.2,197.19,50.13676991]
[1755888226286,0.06,197.2,197.19,44.03719026]
[1755888226589,0.06,197.2,197.19,44.04498544]
[1755888226766,0.06,197.2,197.19,49.47456509]
[1755888226968,0.06,197.2,197.19,50.14577049]
[1755888227182,0.06,197.2,197.19,9.25577049]
[1755888227388,0.57,197.2,197.19,3.82619084]
[1755888227794,0.06,197.2,197.19,3.82619084]
[1755888230191,0.06,197.2,197.19,2.82619084]
[1755888231969,0.57,197.2,197.19,2.82619084]
[1755888232181,0.06,197.2,197.19,2.82619084]
[1755888234294,0.06,197.2,197.19,8.92577049]
[1755888235392,0.06,197.2,197.19,6.09957965]
[1755888236197,0.06,197.2,197.19,5.42957965]
[1755888236375,0.06,197.2,197.19,0.03]
[1755888237686,0.57,197.2,197.19,0.03]
[1755888238304,0.06,197.2,197.19,0.03]
[1755888242122,0.06,197.2,197.19,3.82555432]
[1755888243409,0.06,197.2,197.19,0.03]
[1755888243600,0.06,197.2,197.19,3.82584749]
[1755888244229,0.06,197.2,197.19,3.8254804]
[1755888244413,0.06,197.2,197.19,3.82534118]
[1755888244722,0.06,197.2,197.19,9.95492083]
[1755888246233,0.06,197.2,197.19,76.15492083]
[1755888246906,0.06,197.2,197.19,50.15492083]
[1755888247310,0.06,197.2,197.19,44.72534118]
[1755888247729,0.06,197.22,197.21,26.0]
[1755888247920,0.06,197.22,197.21,69.99534118]
[1755888248231,0.06,197.22,197.21,70.69534118]
[1755888248418,0.06,197.22,197.21,76.12492083]
[1755888248727,0.06,197.22,197.21,72.32957965]
[1755888254210,0.06,197.22,197.21,32.12957965]
[1755888254537,0.06,197.22,197.21,26.0]
[1755888254709,0.06,197.22,197.21,66.18]
[1755888256620,0.06,197.22,197.21,26.0]
[1755888256834,5.99957965,197.22,197.21,3.79421679]
[1755888257210,14.08935965,197.22,197.21,3.79421679]
[1755888260332,13.57935965,197.22,197.21,3.79421679]
[1755888260941,8.14978,197.22,197.21,3.79421679]
[1755888261639,8.14978,197.22,197.21,4.49421679]
[1755888261940,8.14978,197.22,197.21,3.79424768]
[1755888262436,5.48958,197.22,197.21,3.79424768]
[1755888263723,0.06,197.22,197.21,3.79424768]
[1755888265133,0.06,197.22,197.21,4.49424768]
[1755888265512,0.06,197.22,197.21,3.79424768]
[1755888266249,6.18958,197.22,197.21,3.79424768]
[1755888266427,6.18958,197.22,197.19,5.42957965]
[1755888266809,0.06,197.22,197.19,45.58957965]
[1755888267946,0.06,197.22,197.19,40.16]
[1755888268448,13.655594,197.22,197.19,40.16]
[1755888268817,13.655594,197.22,197.19,45.58957965]
[1755888269245,14.335594,197.22,197.19,45.58957965]
[1755888270237,0.06,197.22,197.19,46.28957965]
[1755888270445,0.06,197.22,197.21,5.42957965]
[1755888270813,0.06,197.22,197.21,26.0]
[1755888271017,0.06,197.22,197.21,31.42957965]
[1755888271531,0.06,197.22,197.21,32.12957965]
[1755888272545,0.06,197.22,197.21,72.26957965]
[1755888273331,0.06,197.22,197.21,74.97421365]
[1755888275750,0.06,197.22,197.21,135.87421365]
[1755888276150,0.06,197.22,197.21,141.3037933]
[1755888277129,0.06,197.22,197.21,135.87421365]
[1755888277540,0.06,197.22,197.21,141.3037933]
[1755888277829,0.06,197.22,197.21,141.58811644]
[1755888278064,0.06,197.24,197.22,0.28432314]
[1755888278370,0.06,197.24,197.23,55.48778241]
[1755888279945,0.06,197.24,197.23,26.7]
[1755888280247,0.06,197.24,197.23,76.03774216]
[1755888281058,0.06,197.24,197.23,78.06763216]
[1755888283334,0.06,197.24,197.23,83.49721181]
[1755888283537,0.06,197.24,197.23,72.63805251]
[1755888283770,0.06,197.24,197.23,78.06763216]
[1755888284562,0.06,197.24,197.23,83.49721181]
[1755888284769,0.06,197.24,197.23,78.06763216]
[1755888285368,0.06,197.24,197.23,72.63805251]
[1755888285659,0.06,197.24,197.23,78.06763216]
[1755888285972,0.06,197.24,197.23,74.27946965]
[1755888286157,0.06,197.24,197.23,78.06659761]
[1755888286549,0.06,197.24,197.23,72.63701796]
[1755888286776,0.06,197.24,197.23,78.06659761]
[1755888287349,0.06,197.24,197.23,32.51701796]
[1755888287569,0.06,197.24,197.23,78.06659761]
[1755888288283,0.06,197.24,197.23,37.94659761]
[1755888288612,0.06,197.24,197.23,78.04659761]
[1755888289090,0.06,197.24,197.23,68.82989]
[1755888289265,0.06,197.24,197.23,78.04712635]
[1755888289654,0.06,197.24,197.23,78.04740439]
[1755888290653,0.06,197.24,197.23,138.94740439]
[1755888293591,0.06,197.24,197.23,72.61782474]
[1755888293981,0.06,197.24,197.23,78.04740439]
[1755888294898,0.06,197.24,197.23,37.94740439]
[1755888295080,0.06,197.24,197.23,78.04740439]
[1755888296005,0.74,197.24,197.23,5.81782474]
[1755888296179,0.74,197.24,197.23,3.78793474]
[1755888296367,0.74,197.24,197.23,29.78793474]
[1755888296775,0.74,197.24,197.23,3.78793474]
[1755888297272,0.74,197.24,197.22,40.1]
[1755888297693,0.06,197.24,197.22,40.1]
[1755888298015,0.71,197.23,197.22,40.1]
[1755888299292,0.71,197.23,197.22,43.88838806]
[1755888299714,0.71,197.23,197.22,69.88838806]
[1755888300408,6.13957965,197.23,197.22,3.78838806]
[1755888300900,28.95268766,197.23,197.18,0.03]
[1755888301096,0.71,197.22,197.19,3.79057486]
[1755888301265,5.42957965,197.2,197.18,0.03]
[1755888301599,5.42957965,197.19,197.18,0.03]
[1755888301800,6.13957965,197.19,197.18,3.82274189]
[1755888302304,0.71,197.19,197.18,0.03]
[1755888302476,21.37225865,197.19,197.18,0.03]
[1755888303009,15.942679,197.19,197.18,0.03]
[1755888303378,21.37225865,197.19,197.14,39.75]
[1755888303702,5.42957965,197.16,197.13,26.0]
[1755888303889,0.71,197.15,197.13,26.0]
[1755888304078,5.42957965,197.16,197.13,26.0]
[1755888304266,0.71,197.15,197.13,26.0]
[1755888304467,0.71,197.15,197.12,40.1]
[1755888305174,15.232679,197.19,197.15,26.0]
[1755888305390,13.59559401,197.23,197.17,5.42957965]
[1755888305391,0.71,197.21,197.17,5.42957965]
[1755888305592,15.941132,197.23,197.2,5.42957965]
[1755888306104,15.231132,197.23,197.22,5.42957965]
[1755888306490,0.06,197.24,197.22,5.42957965]
[1755888306691,0.06,197.24,197.23,5.42957965]
[1755888307094,0.06,197.24,197.23,46.23957965]
[1755888307911,0.06,197.24,197.23,40.1]
[1755888308217,0.06,197.24,197.23,45.52957965]
[1755888308384,0.06,197.24,197.23,49.31789013]
[1755888309022,0.77,197.24,197.23,3.78831048]
[1755888309516,0.77,197.24,197.21,40.1]
[1755888309687,0.71,197.23,197.22,3.7894524]
[1755888312620,0.71,197.23,197.22,3.79003047]
[1755888313191,19.73517366,197.23,197.22,3.79003047]
[1755888313411,19.73517366,197.23,197.16,40.1]
[1755888313634,5.42957965,197.21,197.17,3.79019721]
[1755888313805,0.71,197.2,197.18,3.79019721]
[1755888314015,5.42957965,197.22,197.19,3.79019721]
[1755888314213,6.13957965,197.22,197.2,3.79019721]
[1755888314390,0.77,197.24,197.21,3.79019721]
[1755888314594,0.6,197.23,197.17,0.71]
[1755888314923,6.02957965,197.23,197.18,3.78990085]
[1755888315123,6.02957965,197.23,197.19,3.78990085]
[1755888315332,0.6,197.22,197.2,3.78990085]
[1755888315622,0.6,197.22,197.18,6.13957965]
[1755888315623,6.02957965,197.21,197.16,45.52957965]
[1755888315835,0.6,197.2,197.17,3.78968292]
[1755888316052,13.655594,197.21,197.18,3.78968292]
[1755888316248,0.06,197.24,197.19,3.78968292]
[1755888316454,0.06,197.24,197.21,5.42957965]
[1755888316756,0.06,197.24,197.22,3.78909882]
[1755888316757,13.715594,197.24,197.22,3.78909882]
[1755888316957,0.06,197.24,197.23,3.78909882]
[1755888317510,0.06,197.24,197.23,9.92867847]
[1755888318417,0.06,197.24,197.23,55.45825812]
[1755888319015,0.06,197.24,197.23,44.59909882]
[1755888319336,0.06,197.24,197.23,55.45825812]
[1755888319842,0.06,197.24,197.23,57.48825112]
[1755888320044,0.06,197.24,197.23,55.45825812]
[1755888321344,0.06,197.24,197.23,50.02867847]
[1755888323742,0.06,197.24,197.23,50.02867847]
[1755888325423,0.77,197.24,197.23,3.78909882]
[1755888325732,0.06,197.24,197.23,3.78909882]
[1755888328142,0.06,197.24,197.23,9.21867847]
[1755888328732,0.06,197.24,197.23,3.78909882]
[1755888329345,0.06,197.24,197.23,9.90867847]
[1755888330655,0.06,197.24,197.23,49.98867847]
[1755888331026,0.06,197.24,197.23,49.98846546]
[1755888332242,0.06,197.24,197.23,3.78888581]
[1755888332627,0.73,197.24,197.23,3.78888581]
[1755888333358,0.06,197.24,197.23,3.78888581]
[1755888333855,0.73,197.24,197.23,3.78888581]
[1755888334052,6.15957965,197.24,197.23,3.78774867]
[1755888334632,6.889579,197.24,197.23,3.7900321]
[1755888334835,12.31915865,197.24,197.23,3.7900321]
[1755888335630,12.31915865,197.24,197.18,40.08]
[1755888335939,5.42957965,197.22,197.19,3.79052029]
[1755888336136,0.06,197.24,197.21,5.42957965]
[1755888336341,0.06,197.24,197.23,5.42957965]
[1755888336542,0.06,197.24,197.23,9.22009994]
[1755888337251,0.06,197.24,197.23,9.91009994]
[1755888337556,0.06,197.24,197.23,9.22009994]
[1755888338533,0.06,197.24,197.23,9.91009994]
[1755888340357,0.06,197.24,197.23,4.48096751]
[1755888340727,0.06,197.24,197.23,9.91054716]
[1755888341468,0.06,197.24,197.23,9.22054716]
[1755888341927,0.73,197.24,197.23,3.79096751]
[1755888342350,4.520968,197.24,197.23,3.79096751]
[1755888342561,3.850968,197.24,197.23,3.79096751]
[1755888343070,0.06,197.24,197.23,3.79096751]
[1755888343244,0.06,197.24,197.23,6.11957965]
[1755888343451,0.06,197.24,197.23,9.91107262]
[1755888343759,0.06,197.24,197.23,9.22107262]
[1755888344133,0.06,197.24,197.23,9.2207925]
[1755888344334,0.06,197.24,197.23,4.48121285]
[1755888344565,0.06,197.24,197.23,9.9107925]
[1755888344975,0.06,197.24,197.23,9.2207925]
[1755888345146,0.06,197.24,197.23,9.9107925]
[1755888346255,0.06,197.24,197.23,3.79121285]
[1755888347076,0.06,197.24,197.23,9.9107925]
[1755888348239,0.06,197.24,197.23,9.2207925]
[1755888348451,0.06,197.24,197.23,3.79121285]
[1755888350971,0.06,197.24,197.23,9.2207925]
[1755888351478,0.06,197.24,197.23,3.79121285]
[1755888352046,0.73,197.24,197.23,3.79121285]
[1755888352351,0.06,197.24,197.23,3.79121285]
[1755888352549,0.06,197.24,197.23,3.79656525]
[1755888352955,0.06,197.24,197.23,3.79656879]
[1755888353356,0.06,197.24,197.23,3.79659405]
[1755888353571,0.73,197.24,197.23,3.79659405]
[1755888353954,0.06,197.24,197.23,3.79659405]
[1755888356290,6.15957965,197.24,197.23,3.79659405]
[1755888356591,22.68496714,197.24,197.23,3.79659405]
[1755888359282,22.68496714,197.24,197.15,26.7]
[1755888359283,13.87991715,197.23,197.15,26.0]
[1755888359462,5.42957965,197.2,197.16,3.79713831]
[1755888359649,5.42957965,197.2,197.17,3.79713831]
[1755888359856,6.10957965,197.2,197.18,3.79713831]
[1755888360055,6.10957965,197.2,197.19,3.79713831]
[1755888360551,0.68,197.2,197.19,3.79713831]
[1755888361067,6.10957965,197.2,197.19,3.79713831]
[1755888361276,0.68,197.2,197.19,3.79819636]
[1755888361473,6.10957965,197.2,197.19,3.79819636]
[1755888361655,0.68,197.2,197.19,3.79819636]
[1755888361866,6.10957965,197.2,197.19,3.79819636]
[1755888362392,13.59559401,197.19,197.14,0.03]
[1755888362594,5.42957965,197.16,197.15,3.79807099]
[1755888362956,6.10957965,197.16,197.15,3.79807099]
[1755888364196,5.42957965,197.18,197.15,4.49807099]
[1755888364379,5.42957965,197.18,197.16,3.79807099]
[1755888364560,13.59559401,197.19,197.17,3.79807099]
[1755888364763,14.55991715,197.19,197.18,3.79807099]
[1755888365281,13.59559401,197.2,197.18,3.79357373]
[1755888365486,14.27559401,197.2,197.15,0.7]
[1755888365785,5.42957965,197.19,197.16,3.79247031]
[1755888365986,5.42957965,197.19,197.17,3.79247031]
[1755888366188,5.42957965,197.19,197.18,3.79247031]
[1755888366395,6.10957965,197.19,197.18,3.79247031]
[1755888366690,5.42957965,197.19,197.18,3.79247031]
[1755888367185,6.10957965,197.19,197.18,3.79247031]
[1755888367376,19.9894968,197.19,197.18,3.79247031]
[1755888367587,13.87991715,197.18,197.14,0.03]
[1755888367800,5.42957965,197.16,197.15,3.79183444]
[1755888368607,5.42957965,197.17,197.15,3.79183444]
[1755888368813,59.14517366,197.2,197.16,4.49183444]
[1755888369104,59.14517366,197.2,197.17,3.79183444]
[1755888369414,59.82517366,197.2,197.18,3.79183444]
[1755888369803,59.82517366,197.2,197.16,0.7]
[1755888370114,59.82517366,197.2,197.17,3.7903043]
[1755888370316,0.06,197.2,197.19,5.42957965]
[1755888370504,0.06,197.2,197.19,4.4903043]
[1755888370682,0.06,197.2,197.19,9.91988395]
[1755888372771,0.06,197.2,197.19,6.12957965]
[1755888373078,0.06,197.2,197.19,9.91857463]
[1755888378879,0.06,197.2,197.19,9.91907051]
[1755888379998,0.06,197.2,197.19,4.48949086]
[1755888380312,0.06,197.2,197.19,9.91907051]
[1755888380603,0.06,197.2,197.19,70.81907051]
[1755888381606,19.07560283,197.24,197.23,5.42957965]
[1755888381804,19.07560283,197.24,197.23,49.25907051]